bitfinex-derivatives/quotes_ETHF0:USTF0_20250727
["timestamp","ask_amount","ask_price","bid_price","bid_amount"]
[1753615105454,0.52138,3834.7,3834.6,3.7445]
[1753615105860,3.29068,3834.7,3834.6,3.7445]
[1753615106957,1.85228,3834.7,3834.6,4.26588]
[1753615107156,1.85228,3834.7,3834.6,3.7445]
[1753615107351,2.3431,3835.1,3834.7,3.7445]
[1753615107352,0.52136,3834.8,3834.7,3.7445]
[1753615109353,0.52135,3834.9,3834.6,0.52138]
[1753615109553,3.30915,3834.9,3834.8,3.6555]
[1753615110848,3.30915,3834.9,3834.8,2.3924]
[1753615111153,2.4355,3834.2,3833.8,1.5361]
[1753615111353,3.3093,3833.9,3833.8,4.17701]
[1753615111553,3.3093,3833.9,3833.8,3.6555]
[1753615111749,0.5215,3833.9,3833.8,3.6555]
[1753615112058,3.3093,3833.9,3833.8,3.6555]
[1753615112254,3.3093,3833.9,3833.8,2.3924]
[1753615112452,4.2246,3833.9,3833.8,2.3924]
[1753615112855,4.2246,3833.9,3833.8,0.8563]
[1753615113056,0.5215,3833.9,3833.8,3.6555]
[1753615113553,3.2078,3834.6,3834.5,0.52142]
[1753615113758,2.7878,3835.0,3834.5,0.52141]
[1753615114058,2.7878,3835.0,3834.3,4.17694]
[1753615114059,0.52144,3834.4,3834.3,4.17694]
[1753615114656,0.52143,3834.5,3834.4,0.52141]
[1753615114857,0.52143,3834.4,3834.3,4.17694]
[1753615116353,0.52142,3834.5,3834.4,4.17692]
[1753615116554,0.52142,3834.5,3834.4,3.6555]
[1753615117057,2.04162,3834.5,3834.4,3.6555]
[1753615117458,2.04162,3834.5,3834.4,4.17693]
[1753615117658,4.22452,3834.5,3834.4,0.8563]
[1753615117854,0.52147,3834.1,3834.0,1.5361]
[1753615118050,1.78911,3833.8,3833.7,4.58563]
[1753615118250,3.30931,3833.8,3833.7,4.0641]
[1753615118457,0.52157,3833.4,3833.3,4.0641]
[1753615118652,4.22467,3833.4,3833.3,3.2078]
[1753615118853,2.7878,3833.0,3832.9,5.3272]
[1753615119059,1.30384,3833.7,3832.9,5.3272]
[1753615119060,0.52162,3833.1,3833.0,4.17711]
[1753615119261,0.52162,3833.1,3833.0,3.6555]
[1753615119562,0.52162,3833.1,3833.0,4.17712]
[1753615119757,3.30942,3833.1,3833.0,3.6555]
[1753615119958,3.30942,3833.1,3833.0,0.8563]
[1753615120162,3.30942,3833.1,3833.0,3.6555]
[1753615120558,3.30942,3833.1,3833.0,0.8563]
[1753615120754,2.04186,3832.7,3832.6,3.6555]
[1753615120955,3.30946,3832.7,3832.6,3.6555]
[1753615121361,0.52166,3832.8,3832.7,0.52165]
[1753615121562,0.52166,3832.8,3832.7,4.17715]
[1753615121764,4.22476,3832.8,3832.7,0.8563]
[1753615122070,4.22478,3832.6,3832.5,3.2078]
[1753615124267,3.30948,3832.6,3832.5,0.8563]
[1753615124464,3.30948,3832.6,3832.1,3.2078]
[1753615124465,0.52173,3832.2,3832.1,7.38504]
[1753615124769,3.30953,3832.2,3832.1,4.4709]
[1753615124961,0.52177,3831.9,3831.8,1.45621821]
[1753615125163,0.52177,3831.9,3831.8,4.37039821]
[1753615125363,3.30957,3831.9,3831.8,1.04941821]
[1753615125564,4.22487,3831.9,3831.8,0.19311821]
[1753615126871,4.22487,3831.9,3831.8,1.04941821]
[1753615127166,4.22487,3831.9,3831.8,0.19311821]
[1753615127774,4.22487,3831.9,3831.8,1.04941821]
[1753615128171,4.22487,3831.9,3831.8,0.19311821]
[1753615129376,4.22487,3831.9,3831.8,1.04941821]
[1753615130477,0.52177,3831.9,3831.8,7.05641821]
[1753615131079,0.52177,3831.9,3831.8,7.57819821]
[1753615131272,0.52177,3831.9,3831.8,7.05641821]
[1753615132377,3.30957,3831.9,3831.8,7.05641821]
[1753615133374,4.22487,3831.9,3831.8,3.40091821]
[1753615135479,6.60557,3831.9,3831.8,3.40091821]
[1753615135977,6.60557,3831.9,3831.8,0.19311821]
[1753615136476,6.60557,3831.9,3831.8,1.04941821]
[1753615136972,6.60557,3831.9,3831.2,0.0182708]
[1753615136973,2.87735,3831.3,3831.2,0.0182708]
[1753615137177,6.60565,3831.3,3831.2,0.0182708]
[1753615137574,6.60565,3831.3,3831.2,6.2428708]
[1753615138280,4.17015,3831.3,3831.2,6.2428708]
[1753615138478,0.52185,3831.3,3831.2,6.2428708]
[1753615138777,0.52183,3831.5,3831.4,6.64572]
[1753615138980,0.52183,3831.5,3831.4,9.85352]
[1753615139171,3.2078,3832.0,3831.9,0.5692]
[1753615139371,0.52177,3832.0,3831.9,7.45876]
[1753615139572,1.5251,3832.5,3831.9,3.2078]
[1753615139777,0.52174,3832.2,3832.1,0.52173]
[1753615140083,0.52176,3832.1,3832.0,0.52175]
[1753615140281,0.52176,3832.1,3832.0,1.87385]
[1753615140475,0.52176,3832.1,3832.0,4.25095]
[1753615141171,0.52176,3832.1,3832.0,3.7292]
[1753615142076,0.52176,3832.1,3831.9,3.2078]
[1753615142077,0.52176,3832.0,3831.9,3.2078]
[1753615142277,0.5218,3831.7,3831.6,0.8584]
[1753615142474,3.33875,3831.3,3831.2,0.8766708]
[1753615142675,4.26115,3831.3,3831.2,0.0182708]
[1753615143073,4.26115,3831.3,3831.2,0.8766708]
[1753615143282,4.26115,3831.3,3831.2,0.0182708]
[1753615143479,4.26115,3831.3,3830.8,0.8584]
[1753615143480,0.52191,3830.9,3830.8,0.8584]
[1753615143683,4.26122,3830.8,3830.7,3.2078]
[1753615144474,3.33882,3830.8,3830.7,4.0662]
[1753615144778,1.81372,3830.8,3830.7,6.937]
[1753615145178,0.522,3830.2,3830.1,4.7265]
[1753615145580,0.52195,3830.7,3830.1,4.7265]
[1753615145783,2.8169,3830.8,3830.7,4.25113]
[1753615146085,1.2918,3831.5,3831.4,0.52184]
[1753615146281,1.2918,3831.5,3831.4,4.25104]
[1753615146482,1.2918,3831.9,3831.5,3.7292]
[1753615146676,1.2918,3832.4,3831.6,3.7292]
[1753615146878,1.8135,3832.4,3832.3,3.7292]
[1753615147183,4.94893173,3832.4,3832.3,0.8584]
[1753615147781,4.42723173,3832.4,3832.3,1.38012]
[1753615148079,4.261,3832.4,3832.3,0.8584]
[1753615148778,2.8169,3832.0,3831.4,6.0786]
[1753615148978,0.52177,3831.8,3831.1,4.17545]
[1753615149188,0.52179,3831.6,3831.5,0.5218]
[1753615149489,2.8169,3831.6,3831.5,2.7323]
[1753615149779,1.2918,3831.3,3831.2,1.5187]
[1753615149985,1.2918,3831.3,3831.2,3.39264]
[1753615150382,1.5251,3831.4,3831.3,0.52183]
[1753615150585,1.2918,3831.7,3831.6,4.25099]
[1753615150784,1.81357,3831.7,3831.6,4.25099]
[1753615150984,0.52182,3831.4,3831.2,3.2078]
[1753615151189,3.2078,3831.6,3831.2,0.8584]
[1753615151386,2.8169,3831.3,3831.2,1.38023]
[1753615151586,2.8169,3831.3,3831.2,2.73233]
[1753615151786,2.8169,3831.3,3831.2,4.25103]
[1753615151984,3.2078,3832.1,3831.3,2.3771]
[1753615152190,3.3386,3832.3,3832.2,0.52171]
[1753615152486,0.5217,3832.3,3832.2,4.25091]
[1753615152788,0.5217,3832.3,3832.2,0.5217]
[1753615152990,3.2078,3832.5,3831.7,3.2078]
[1753615153290,0.52169,3832.4,3832.3,4.25088]
[1753615154092,2.8169,3832.6,3832.5,1.38006]
[1753615154388,3.50678389,3832.6,3832.5,1.38006]
[1753615154685,3.50678389,3832.6,3832.5,0.8584]
[1753615154686,4.02843389,3832.6,3832.5,0.8584]
[1753615155284,3.33855,3832.6,3832.5,0.8584]
[1753615156286,4.95124443,3832.6,3832.5,1.38007]
[1753615156483,0.69029443,3832.6,3832.5,4.25087]
[1753615156983,0.52163,3832.8,3832.7,0.52164]
[1753615157189,1.21195681,3832.8,3832.7,3.7292]
[1753615157390,4.02885681,3832.8,3832.7,3.7292]
[1753615158184,3.33853,3832.8,3832.7,3.7292]
[1753615159087,4.26093,3832.8,3832.7,0.8584]
[1753615159279,3.33855,3832.6,3832.5,0.8584]
[1753615159485,4.26095,3832.6,3832.5,1.38007]
[1753615159683,3.33855,3832.6,3832.5,4.25087]
[1753615161892,3.33855,3832.6,3832.5,3.7292]
[1753615162192,4.26095,3832.6,3832.5,2.3771]
[1753615162384,4.26095,3832.6,3832.5,0.8584]
[1753615162590,2.2142,3832.3,3832.2,2.3771]
[1753615162787,4.26099,3832.3,3832.2,0.8584]
[1753615163791,1.5251,3832.0,3831.6,3.2078]
[1753615163991,4.26106,3831.8,3831.7,0.8584]
[1753615164296,3.33867,3831.7,3831.6,3.2078]
[1753615164497,4.26107,3831.7,3831.6,3.2078]
[1753615165596,4.26107,3831.7,3831.6,5.5849]
[1753615165798,2.04687,3831.7,3831.6,4.25099]
[1753615166095,0.52177,3831.7,3831.6,3.7292]
[1753615166493,0.52179,3831.7,3831.4,3.2078]
[1753615166693,0.5218,3831.6,3831.5,0.52179]
[1753615167093,0.5218,3831.6,3831.5,4.25099]
[1753615167292,0.52178,3831.7,3831.6,4.25098]
[1753615167894,0.52178,3831.7,3831.6,3.7292]
[1753615168290,0.52178,3831.7,3831.6,4.25099]
[1753615168492,0.52178,3831.7,3831.6,3.7292]
[1753615169097,0.52181,3831.4,3831.3,1.4638]
[1753615169293,0.52181,3831.4,3831.3,3.702]
[1753615169790,3.24381,3831.4,3831.3,3.702]
[1753615169991,0.52181,3831.4,3831.3,3.702]
[1753615170292,3.2078,3831.7,3831.0,4.51246]
[1753615170495,3.72957,3831.7,3831.6,2.4386]
[1753615170690,3.72957,3831.7,3831.6,6.66239]
[1753615171098,8.92027,3831.7,3831.6,4.6768]
[1753615171295,8.92027,3831.7,3831.6,0.8764]
[1753615171296,9.83067,3831.7,3831.6,0.8764]
[1753615171592,2.99051,3831.4,3831.3,4.7788]
[1753615171796,5.71251,3831.4,3831.3,4.7788]
[1753615172599,5.71251,3831.4,3831.3,6.1406]
[1753615172788,0.52181,3831.4,3831.3,6.1406]
[1753615173097,0.52181,3831.4,3831.3,6.66243]
[1753615173287,0.52181,3831.4,3831.3,6.1406]
[1753615173995,5.71251,3831.4,3831.3,6.1406]
[1753615174196,6.62291,3831.4,3831.3,4.6768]
[1753615174700,5.71251,3831.4,3831.3,6.1406]
[1753615174895,2.07371,3831.4,3831.3,6.1406]
[1753615175401,3.36631,3831.4,3831.3,6.1406]
[1753615175794,7.23406,3832.3,3831.5,0.8764]
[1753615176001,5.71239,3832.3,3832.2,6.1406]
[1753615176293,2.07365,3831.9,3831.8,6.1406]
[1753615176490,5.71245,3831.9,3831.8,6.1406]
[1753615177092,0.52175,3831.9,3831.8,6.1406]
[1753615177297,2.722,3832.3,3832.2,2.4386]
[1753615177502,0.52169,3832.3,3832.2,6.1406]
[1753615178099,3.36619,3832.3,3832.2,6.1406]
[1753615178496,5.71239,3832.3,3832.2,2.3996]
[1753615178701,2.07365,3831.9,3831.8,6.1406]
[1753615179099,0.52175,3831.9,3831.8,6.1406]
[1753615179599,5.1907,3831.5,3831.4,6.1406]
[1753615179800,5.7125,3831.5,3831.4,6.1406]
[1753615180003,3.2438,3831.5,3831.4,3.702]
[1753615180300,3.2438,3831.5,3831.4,0.8764]
[1753615180301,4.1542,3831.5,3831.4,0.8764]
[1753615180701,0.52183,3831.3,3831.2,3.2078]
[1753615180896,4.15423,3831.3,3831.2,3.2078]
[1753615181200,3.24386,3831.1,3831.0,3.702]
[1753615182899,0.52181,3831.5,3831.4,2.4386]
[1753615183201,5.71243,3832.0,3831.9,3.315]
[1753615183406,6.62283,3832.0,3831.9,0.8764]
[1753615183801,1.49163,3832.0,3831.9,6.1406]
[1753615183994,0.52173,3832.0,3831.9,6.1406]
[1753615184198,5.71243,3832.0,3831.9,6.1406]
[1753615184399,6.62283,3832.0,3831.9,3.315]
[1753615184696,6.62283,3832.0,3831.6,1.4638]
[1753615184998,5.71247,3831.7,3831.6,4.7788]
[1753615185398,0.52177,3831.7,3831.6,6.1406]
[1753615185800,4.79567,3831.7,3831.6,6.1406]
[1753615186402,5.71247,3831.7,3831.6,6.1406]
[1753615186599,6.62287,3831.7,3831.6,0.8764]
[1753615186904,5.71251,3831.4,3831.3,6.1406]
[1753615187404,0.52186,3831.1,3831.0,5.2642]
[1753615187704,5.71256,3831.1,3831.0,5.2642]
[1753615188102,5.71256,3831.1,3831.0,4.6768]
[1753615188296,2.9906,3830.8,3830.7,3.741]
[1753615188602,6.623,3830.8,3830.7,3.741]
[1753615188803,6.623,3830.8,3830.7,5.2048]
[1753615189004,5.7126,3830.8,3830.7,6.1406]
[1753615189405,2.9906,3830.8,3830.7,6.1406]
[1753615189605,2.0738,3830.8,3830.7,6.1406]
[1753615189995,0.52183,3831.3,3831.2,5.5441]
[1753615190208,0.52183,3831.3,3831.2,6.1406]
[1753615191006,6.62293,3831.3,3831.2,0.8764]
[1753615191197,6.62293,3831.3,3831.2,2.3792]
[1753615191404,6.62293,3831.3,3831.2,6.1406]
[1753615191998,0.52188,3830.9,3830.8,3.702]
[1753615192202,3.24388,3830.9,3830.8,3.702]
[1753615192704,0.52188,3830.9,3830.8,3.702]
[1753615194006,4.15428,3830.9,3830.8,0.8764]
[1753615195408,1.30463,3831.2,3830.6,3.2078]
[1753615195409,2.99061,3830.7,3830.6,3.2078]
[1753615195610,5.71261,3830.7,3830.6,6.9488]
[1753615195909,5.71261,3830.7,3830.6,9.3484]
[1753615197105,6.62301,3830.7,3830.6,3.2078]
[1753615197704,6.62301,3830.7,3830.6,4.0804]
[1753615197914,6.62301,3830.7,3830.6,3.2078]
[1753615199308,6.62301,3830.7,3830.6,4.6961]
[1753615199504,6.62301,3830.7,3830.6,6.6031]
[1753615199709,6.62301,3830.7,3830.6,9.4362]
[1753615200907,5.71261,3830.7,3830.6,9.4362]
[1753615201111,6.55531,3830.7,3830.6,9.4362]
[1753615202206,5.71261,3830.7,3830.6,9.4362]
[1753615202605,5.71261,3830.7,3830.6,3.2078]
[1753615202812,6.55531,3830.7,3830.6,3.2078]
[1753615203012,5.71261,3830.7,3830.6,9.4362]
[1753615204211,9.76311,3830.7,3830.6,6.2284]
[1753615204510,5.60865,3830.4,3830.3,6.2284]
[1753615205307,0.52195,3830.4,3830.3,6.2284]
[1753615207212,1.09945,3830.4,3830.3,6.2284]
[1753615207406,2.07395,3830.4,3830.3,6.2284]
[1753615207611,2.93325,3830.4,3830.3,6.2284]
[1753615207813,6.45135,3830.4,3830.3,6.2284]
[1753615208604,3.22069,3830.1,3830.0,1.9204]
[1753615208809,6.45139,3830.1,3830.0,2.8166]
[1753615209115,6.45139,3830.1,3830.0,1.5119]
[1753615209612,6.45139,3830.1,3830.0,2.3845]
[1753615209814,6.45139,3830.1,3830.0,3.3953]
[1753615210014,6.45139,3830.1,3830.0,2.3845]
[1753615210517,5.03792,3829.9,3829.8,2.71591906]
[1753615210718,6.45142,3829.9,3829.8,0.19321906]
[1753615211712,6.45142,3829.9,3829.8,9.06e-06]
[1753615214315,11.45142,3829.9,3829.8,9.06e-06]
[1753615215015,0.52213,3829.1,3829.0,1.3047]
[1753615215216,6.45153,3829.1,3829.0,0.8726]
[1753615215610,6.45153,3829.1,3829.0,2.3845]
[1753615216013,3.2078,3829.2,3828.7,2.5227]
[1753615216014,3.254,3828.8,3828.7,2.5227]
[1753615216213,6.45157,3828.8,3828.7,0.8726]
[1753615216618,6.45157,3828.8,3828.7,1.4883]
[1753615217518,5.60887,3828.8,3828.7,6.2284]
[1753615217716,4.19537,3828.8,3828.7,6.2284]
[1753615218109,5.60887,3828.8,3828.7,6.2284]
[1753615218309,6.45157,3828.8,3828.7,6.2284]
[1753615218511,9.65937,3828.8,3828.7,6.2284]
[1753615218708,9.65937,3828.8,3828.7,3.3953]
[1753615218912,9.65937,3828.8,3828.7,2.3845]
[1753615219212,4.19544,3828.3,3828.2,5.37408512]
[1753615219420,2.07424,3828.3,3828.2,5.37408512]
[1753615219619,2.07424,3828.3,3828.2,6.24668512]
[1753615219808,2.93354,3828.3,3828.2,6.24668512]
[1753615220008,4.19544,3828.3,3828.2,6.24668512]
[1753615220214,0.52224,3828.3,3828.2,6.24668512]
[1753615221622,1.09974,3828.3,3828.2,6.24668512]
[1753615221818,2.07424,3828.3,3828.2,6.24668512]
[1753615222414,0.52224,3828.3,3828.2,6.24668512]
[1753615223516,1.30545,3828.8,3828.2,2.54098512]
[1753615223718,0.52221,3828.5,3828.4,6.2284]
[1753615224424,2.07421,3828.5,3828.4,6.2284]
[1753615224623,4.19541,3828.5,3828.4,6.2284]
[1753615225711,5.60891,3828.5,3828.4,6.2284]
[1753615229023,2.93351,3828.5,3828.4,6.2284]
[1753615229423,2.07421,3828.5,3828.4,6.2284]
[1753615229618,1.09971,3828.5,3828.4,6.2284]
[1753615230017,2.06391,3828.5,3828.4,6.2284]
[1753615230621,23.74291,3828.5,3828.4,6.2284]
[1753615231324,22.20121,3828.5,3828.4,6.2284]
[1753615231518,22.20021,3828.5,3828.4,6.2284]
[1753615231720,0.52221,3828.5,3828.4,6.2284]
[1753615231921,2.6414,3829.5,3829.2,2.4179]
[1753615232119,4.62925,3829.7,3829.6,4.7286]
[1753615232328,25.40785,3829.7,3829.6,6.0825]
[1753615232826,26.94335,3829.7,3829.6,6.0825]
[1753615233022,29.17895,3829.7,3829.6,6.0825]
[1753615233325,26.94335,3829.7,3829.6,6.0825]
[1753615234626,30.58715,3829.7,3829.6,6.0825]
[1753615235317,22.20005,3829.7,3829.6,6.0825]
[1753615235524,22.19605,3829.7,3829.6,6.0825]
[1753615235923,0.52205,3829.7,3829.6,6.0825]
[1753615236123,1.40058857,3831.6,3831.5,2.4179]
[1753615236324,1.40058857,3832.1,3831.7,0.52177]
[1753615236527,0.52173,3832.1,3831.8,6.0825]
[1753615236824,5.50438857,3832.5,3831.8,6.0825]
[1753615237030,0.896,3832.5,3831.8,9.81206]
[1753615237328,0.52165,3832.6,3832.5,2.4179]
[1753615237520,1.98895,3832.6,3832.5,2.4179]
[1753615237721,8.01193857,3832.6,3832.5,2.4179]
[1753615237921,6.61135,3832.6,3832.5,5.1708]
[1753615238120,5.20321,3832.2,3832.1,5.1708]
[1753615238326,6.61141,3832.2,3832.1,5.1708]
[1753615239024,4.60902972,3832.5,3831.8,0.9117]
[1753615239025,0.52175,3831.9,3831.8,3.3296]
[1753615239231,21.671,3832.4,3831.4,3.2078]
[1753615239232,0.52174,3832.0,3831.9,0.9117]
[1753615239417,0.896,3832.4,3832.3,3.3296]
[1753615239620,0.896,3832.4,3832.3,6.0825]
[1753615240025,0.52168,3832.4,3832.3,6.0825]
[1753615242122,1.09298,3832.4,3832.3,6.0825]
[1753615242322,4.23898,3832.4,3832.3,6.0825]
[1753615242525,2.88838,3832.4,3832.3,6.0825]
[1753615243226,3.85258,3832.4,3832.3,6.0825]
[1753615243429,6.61138,3832.4,3832.3,6.0825]
[1753615243629,6.61138,3832.4,3832.3,5.1708]
[1753615244330,6.61138,3832.4,3832.3,6.0825]
[1753615244530,3.85258,3832.4,3832.3,6.0825]
[1753615244718,2.88838,3832.4,3832.3,6.0825]
[1753615244918,1.09298,3832.4,3832.3,6.0825]
[1753615245127,5.71545,3831.9,3831.8,5.0314]
[1753615245425,3.85265,3831.9,3831.8,9.2903]
[1753615245727,0.52175,3831.9,3831.8,9.2903]
[1753615246727,1.98905,3831.9,3831.8,6.0825]
[1753615247126,0.52175,3831.9,3831.8,14.2903]
[1753615247526,2.20017,3832.5,3831.8,9.81206]
[1753615247726,3.2078,3832.6,3832.5,2.4179]
[1753615247929,4.30075,3832.6,3832.5,6.0825]
[1753615248133,9.81915,3832.6,3832.5,6.0825]
[1753615248431,9.81915,3832.6,3832.5,0.9793]
[1753615248837,0.896,3832.2,3831.8,3.2078]
[1753615249030,5.20327,3831.7,3831.6,5.1708]
[1753615249427,6.61147,3831.7,3831.6,5.1708]
[1753615251224,0.52177,3831.7,3831.6,6.0825]
[1753615251534,0.52176,3831.8,3831.7,6.0825]
[1753615252035,0.52176,3831.8,3831.7,6.60427]
[1753615252732,0.52176,3831.9,3831.8,2.93966]
[1753615253033,0.52176,3831.9,3831.8,6.60426]
[1753615253226,0.52176,3831.9,3831.8,6.0825]
[1753615253625,6.61138,3832.4,3832.3,3.7322]
[1753615253934,6.61138,3832.4,3832.3,5.1708]
[1753615254433,1.4673,3832.4,3832.3,6.0825]
[1753615254630,3.72946,3832.5,3832.4,2.93958]
[1753615254835,3.72946,3832.5,3832.4,6.0825]
[1753615255032,9.81916,3832.5,3832.4,5.1708]
[1753615255331,0.52173,3832.0,3831.9,3.35934]
[1753615255536,6.61143,3832.0,3831.9,3.8169]
[1753615256832,6.61143,3832.0,3831.9,0.9793]
[1753615257035,6.61143,3832.0,3831.9,5.1708]
[1753615257331,3.85258,3832.4,3832.3,2.93959]
[1753615257638,5.20318,3832.4,3832.3,6.0109]
[1753615257935,6.68308,3832.4,3832.3,6.0109]
[1753615258728,6.68308,3832.4,3832.3,5.1708]
[1753615259935,6.68308,3832.4,3832.3,0.9793]
[1753615260335,1.97512,3832.1,3832.0,4.2901]
[1753615260535,6.67982,3832.1,3832.0,5.81463]
[1753615260835,6.67982,3832.1,3832.0,5.2929]
[1753615261036,6.67982,3832.1,3832.0,3.9377]
[1753615261238,6.67982,3832.1,3832.0,1.8885]
[1753615261439,6.67982,3832.1,3832.0,1.0028]
[1753615262237,0.89,3833.0,3832.4,2.4634]
[1753615262431,1.8743,3833.0,3832.9,6.133]
[1753615262634,4.2177,3833.0,3832.9,6.133]
[1753615262932,4.21765,3833.4,3833.3,4.7778]
[1753615263238,5.19975,3833.4,3833.3,4.7778]
[1753615263430,5.19975,3833.4,3833.3,6.133]
[1753615263635,6.67965,3833.4,3833.3,6.133]
[1753615264136,7.37866756,3833.4,3833.3,5.2929]
[1753615264537,7.37866756,3833.4,3833.3,3.9377]
[1753615264832,7.37866756,3833.4,3833.3,2.4634]
[1753615265426,6.67968,3833.1,3833.0,5.2929]
[1753615265635,7.37869756,3833.1,3833.0,3.9377]
[1753615265836,6.67972,3832.8,3832.7,5.2929]
[1753615266131,6.67978,3832.5,3832.4,1.0028]
[1753615266437,21.647,3833.1,3832.9,2.4634]
[1753615266636,22.16859,3833.1,3833.0,6.133]
[1753615266829,22.86736965,3833.1,3833.0,6.133]
[1753615267037,29.02546965,3833.1,3833.0,3.9377]
[1753615267338,29.02546965,3833.1,3833.0,1.0028]
[1753615267534,0.52162,3832.8,3832.7,4.2901]
[1753615267739,7.37850965,3832.8,3832.7,5.2929]
[1753615267935,1.97506,3832.5,3832.4,3.8186]
[1753615268141,6.67976,3832.5,3832.4,5.2929]
[1753615268338,7.37927175,3832.5,3832.4,5.2929]
[1753615268530,6.67976,3832.5,3832.4,3.9377]
[1753615268729,6.67981,3832.2,3832.1,7.1455]
[1753615268934,6.67981,3832.2,3832.1,8.5007]
[1753615269135,1.30403,3833.0,3832.1,8.5007]
[1753615269136,2.3434,3832.5,3832.4,2.4634]
[1753615269339,0.89,3832.7,3832.4,2.98507]
[1753615269535,2.00784,3832.7,3832.6,2.4634]
[1753615269736,2.86504,3832.7,3832.6,6.133]
[1753615269942,4.21774,3832.7,3832.6,6.133]
[1753615270131,6.67974,3832.7,3832.6,6.133]
[1753615270331,7.38019857,3832.7,3832.6,6.133]
[1753615271134,7.38019857,3832.7,3832.6,5.2929]
[1753615271640,7.38019857,3832.7,3832.6,3.9377]
[1753615271843,7.38019857,3832.7,3832.6,1.0028]
[1753615272242,2.95718,3832.4,3832.3,2.8295]
[1753615272437,7.38023857,3832.4,3832.3,1.4743]
[1753615272636,6.67978,3832.4,3832.3,5.2929]
[1753615273635,7.38020447,3832.4,3832.3,1.8885]
[1753615273839,5.19992,3832.1,3832.0,5.2929]
[1753615274036,6.67982,3832.1,3832.0,1.4743]
[1753615274238,5.19996,3831.8,3831.7,5.2929]
[1753615274441,6.67986,3831.8,3831.7,5.2929]
[1753615274644,6.67986,3831.8,3831.7,3.9377]
[1753615275344,6.67989,3831.6,3831.5,5.6712]
[1753615275540,6.67989,3831.6,3831.5,8.5007]
[1753615276645,6.67989,3831.6,3831.5,9.3408]
[1753615277143,6.67989,3831.6,3831.5,8.5007]
[1753615278146,6.67989,3831.6,3831.5,5.2929]
[1753615278841,6.67989,3831.6,3831.5,3.9377]
[1753615279037,0.52183,3831.3,3831.2,2.8295]
[1753615279241,6.67993,3831.3,3831.2,5.2929]
[1753615281247,2.95736,3831.1,3831.0,5.6712]
[1753615281440,2.95736,3831.1,3831.0,3.2078]
[1753615281441,6.67996,3831.1,3831.0,3.2078]
[1753615281636,6.67996,3831.1,3831.0,8.5007]
[1753615282046,6.67996,3831.1,3831.0,9.3408]
[1753615282540,3.3255,3831.6,3831.5,2.4634]
[1753615282748,6.67989,3831.6,3831.5,3.9377]
[1753615283046,5.19999,3831.6,3831.5,6.133]
[1753615283846,5.19999,3831.6,3831.5,6.6548]
[1753615284045,3.84729,3831.6,3831.5,6.6548]
[1753615284348,3.84719,3832.3,3832.2,6.65471]
[1753615284546,2.3434,3832.6,3832.5,4.6587]
[1753615284742,2.86506,3832.6,3832.5,6.65466]
[1753615285241,3.56457363,3832.6,3832.5,6.65466]
[1753615285442,2.86506,3832.6,3832.5,6.65466]
[1753615285645,2.86506,3832.6,3832.5,6.133]
[1753615286141,5.19986,3832.6,3832.5,6.133]
[1753615286542,6.67976,3832.6,3832.5,6.133]
[1753615286941,5.19991,3832.2,3832.1,5.2929]
[1753615287255,6.67983,3832.0,3831.9,8.5007]
[1753615287545,6.67983,3832.0,3831.9,5.81465]
[1753615287748,6.67983,3832.0,3831.9,6.69335]
[1753615287942,6.1581,3832.0,3831.9,6.69335]
[1753615288137,4.6782,3832.0,3831.9,6.69335]
[1753615288344,5.19993,3832.0,3831.9,6.1716]
[1753615288541,6.71003,3832.0,3831.9,5.2929]
[1753615288744,3.7528,3832.0,3831.6,2.91329]
[1753615289047,6.2751,3831.7,3831.6,5.74759]
[1753615289943,2.03285,3831.9,3831.8,2.4625]
[1753615290138,4.25985,3831.9,3831.8,5.2258]
[1753615290338,4.25985,3831.9,3831.8,6.62626]
[1753615290545,1.5039,3832.1,3832.0,4.2463]
[1753615290745,2.4238,3832.1,3832.0,6.1045]
[1753615290945,1.836,3832.3,3832.2,2.98421]
[1753615291252,1.5111,3832.4,3832.3,5.74749]
[1753615291446,2.4238,3832.4,3832.3,9.83399]
[1753615291644,0.52166,3832.6,3832.5,6.62615]
[1753615292442,1.43436,3832.6,3832.5,6.1045]
[1753615292638,2.02556,3832.6,3832.5,6.1045]
[1753615293047,0.52166,3832.6,3832.5,6.62616]
[1753615293242,1.43436,3832.6,3832.5,6.62616]
[1753615293443,2.02556,3832.6,3832.5,6.62616]
[1753615293649,2.94546,3832.6,3832.5,6.1045]
[1753615295351,5.28666,3832.6,3832.5,6.62616]
[1753615296144,5.28666,3832.6,3832.5,6.1045]
[1753615296646,5.28666,3832.6,3832.5,6.62616]
[1753615297148,4.9608,3832.9,3832.8,0.52162]
[1753615297354,6.79672,3832.9,3832.8,6.62612]
[1753615297651,6.79672,3832.9,3832.8,5.2258]
[1753615297946,6.79672,3832.9,3832.8,5.74742]
[1753615298353,6.2751,3832.9,3832.8,5.74742]
[1753615298546,3.4507,3832.9,3832.8,6.62612]
[1753615298747,2.94539,3833.1,3833.0,6.6261]
[1753615298943,2.4238,3833.1,3833.0,6.6261]
[1753615299150,0.5912,3833.1,3833.0,6.6261]
[1753615299352,1.5039,3833.1,3833.0,6.6261]
[1753615299554,2.4238,3833.1,3833.0,6.6261]
[1753615299746,0.52156,3833.3,3833.1,2.4625]
[1753615299948,0.52156,3833.3,3833.2,6.62605]
[1753615300144,0.52155,3833.4,3833.3,4.49684]
[1753615300447,6.79665,3833.4,3833.3,5.74734]
[1753615300843,6.79665,3833.4,3833.3,0.9887]
[1753615301151,3.05957,3833.2,3833.1,2.98408]